Workbook

Sheet Sheet1
A1: 报考单位 | B1: 岗位代码 | C1: 学段 名称 | D1: 学科名称 | E1: 笔试准考证号 | F1: 笔试合成成绩 | G1: 签号 | H1: 面试分数 | I1: 合成成绩
A2: 田家庵区第十六小学 | B2: 340403001001 | C2: 小学 | D2: 语文 | E2: 040401203 | F2: 89.8 | G2: 11 | H2: 85.6 | I2: =ROUND(F2/1.2*0.6+H2*0.4,2) -> 79.14
A3: 田家庵区第十六小学 | B3: 340403001001 | C3: 小学 | D3: 语文 | E3: 040401204 | F3: 89.2 | G3: 1 | H3: 76.2 | I3: 75.08
A4: 田家庵区第十六小学 | B4: 340403001001 | C4: 小学 | D4: 语文 | E4: 040401130 | F4: 84.8 | G4: 14 | H4: 76.8 | I4: 73.12
A5: 田家庵区第十六小学 | B5: 340403001002 | C5: 小学 | D5: 数学 | E5: 040301003 | F5: 67.2 | G5: 4 | H5: 80 | I5: 65.6
A6: 田家庵区第十六小学 | B6: 340403001002 | C6: 小学 | D6: 数学 | E6: 040301004 | F6: 62.6 | G6: 11 | H6: 79.2 | I6: 62.98
A7: 田家庵区第十六小学 | B7: 340403001002 | C7: 小学 | D7: 数学 | E7: 040301001 | F7: 61 | G7: 10 | H7: 78.8 | I7: 62.02
A8: 田家庵区洞山中学 | B8: 340403002001 | C8: 小学 | D8: 语文 | E8: 040401207 | F8: 95.1 | G8: 15 | H8: 86.2 | I8: 82.03
A9: 田家庵区洞山中学 | B9: 340403002001 | C9: 小学 | D9: 语文 | E9: 040401225 | F9: 92.2 | G9: 18 | H9: 85.2 | I9: 80.18
A10: 田家庵区洞山中学 | B10: 340403002001 | C10: 小学 | D10: 语文 | E10: 040401217 | F10: 90.3 | G10: 2 | H10: 85.4 | I10: 79.31
A11: 田家庵区洞山中学 | B11: 340403002001 | C11: 小学 | D11: 语文 | E11: 040401228 | F11: 91 | G11: 16 | H11: 82.6 | I11: 78.54
A12: 田家庵区洞山中学 | B12: 340403002001 | C12: 小学 | D12: 语文 | E12: 040401211 | F12: 86.5 | G12: 4 | H12: 74.2 | I12: 72.93
A13: 田家庵区洞山中学 | B13: 340403002001 | C13: 小学 | D13: 语文 | E13: 040401226 | F13: 92.2 | G13: 弃权 | I13: 弃权
A14: 田家庵区洞山中学 | B14: 340403002002 | C14: 小学 | D14: 数学 | E14: 040301005 | F14: 71.2 | G14: 13 | H14: 80.8 | I14: =ROUND(F14/1.2*0.6+H14*0.4,2) -> 67.92
A15: 田家庵区洞山中学 | B15: 340403002002 | C15: 小学 | D15: 数学 | E15: 040301006 | F15: 65.5 | G15: 3 | H15: 74.6 | I15: =ROUND(F15/1.2*0.6+H15*0.4,2) -> 62.59
A16: 田家庵区洞山中学 | B16: 340403002002 | C16: 小学 | D16: 数学 | E16: 040301009 | F16: 66.4 | G16: 弃权 | I16: 弃权
A17: 田家庵区朝阳中学 | B17: 340403003001 | C17: 初中 | D17: 数学 | E17: 040200814 | F17: 69.8 | G17: 10 | H17: 83.6 | I17: =ROUND(F17/1.2*0.6+H17*0.4,2) -> 68.34
A18: 田家庵区朝阳中学 | B18: 340403003001 | C18: 初中 | D18: 数学 | E18: 040200810 | F18: 67.4 | G18: 11 | H18: 69.6 | I18: 61.54
A19: 田家庵区朝阳中学 | B19: 340403003002 | C19: 初中 | D19: 物理 | E19: 040202012 | F19: 73.3 | G19: 7 | H19: 77.6 | I19: 67.69
A20: 田家庵区朝阳中学 | B20: 340403003002 | C20: 初中 | D20: 物理 | E20: 040202013 | F20: 75.8 | G20: 1 | H20: 73.6 | I20: 67.34
A21: 田家庵区朝阳中学 | B21: 340403003003 | C21: 初中 | D21: 历史 | E21: 040200115 | F21: 84.7 | G21: 5 | H21: 86 | I21: 76.75
A22: 田家庵区朝阳中学 | B22: 340403003003 | C22: 初中 | D22: 历史 | E22: 040200114 | F22: 89.4 | G22: 1 | H22: 73.8 | I22: 74.22
A23: 田家庵区朝阳中学 | B23: 340403003003 | C23: 初中 | D23: 历史 | E23: 040200117 | F23: 80.1 | G23: 弃权 | I23: 弃权
A24: 田家庵区朝阳中学 | B24: 340403003004 | C24: 初中 | D24: 道德与法治 | E24: 040102827 | F24: 85.2 | G24: 8 | H24: 78.4 | I24: =ROUND(F24/1.2*0.6+H24*0.4,2) -> 73.96
A25: 田家庵区朝阳中学 | B25: 340403003004 | C25: 初中 | D25: 道德与法治 | E25: 040102828 | F25: 77.2 | G25: 2 | H25: 74.4 | I25: 68.36
A26: 田家庵区朝阳中学 | B26: 340403003004 | C26: 初中 | D26: 道德与法治 | E26: 040102901 | F26: 75.9 | G26: 5 | H26: 70.4 | I26: 66.11
A27: 田家庵区淮河中学 | B27: 340403004001 | C27: 初中 | D27: 数学 | E27: 040200829 | F27: 83.4 | G27: 15 | H27: 83.7 | I27: 75.18
A28: 田家庵区淮河中学 | B28: 340403004001 | C28: 初中 | D28: 数学 | E28: 040200906 | F28: 81.3 | G28: 16 | H28: 84.2 | I28: 74.33
A29: 田家庵区淮河中学 | B29: 340403004001 | C29: 初中 | D29: 数学 | E29: 040200826 | F29: 74.7 | G29: 12 | H29: 80.4 | I29: 69.51
A30: 田家庵区淮河中学 | B30: 340403004001 | C30: 初中 | D30: 数学 | E30: 040200823 | F30: 74 | G30: 3 | H30: 71 | I30: 65.4
A31: 田家庵区淮河中学 | B31: 340403004001 | C31: 初中 | D31: 数学 | E31: 040200830 | F31: 85.1 | G31: 弃权 | I31: 弃权
A32: 田家庵区淮河中学 | B32: 340403004001 | C32: 初中 | D32: 数学 | E32: 040200905 | F32: 76.2 | G32: 弃权 | I32: 弃权
A33: 田家庵区淮河中学 | B33: 340403004002 | C33: 初中 | D33: 语文 | E33: 040101702 | F33: 88.4 | G33: 10 | H33: 85.4 | I33: =ROUND(F33/1.2*0.6+H33*0.4,2) -> 78.36
A34: 田家庵区淮河中学 | B34: 340403004002 | C34: 初中 | D34: 语文 | E34: 040101717 | F34: 87 | G34: 6 | H34: 81.3 | I34: =ROUND(F34/1.2*0.6+H34*0.4,2) -> 76.02
A35: 田家庵区淮河中学 | B35: 340403004002 | C35: 初中 | D35: 语文 | E35: 040101703 | F35: 89.9 | G35: 5 | H35: 77.6 | I35: =ROUND(F35/1.2*0.6+H35*0.4,2) -> 75.99
A36: 田家庵区淮河中学 | B36: 340403004002 | C36: 初中 | D36: 语文 | E36: 040101716 | F36: 89.4 | G36: 8 | H36: 77.5 | I36: =ROUND(F36/1.2*0.6+H36*0.4,2) -> 75.7
A37: 田家庵区淮河中学 | B37: 340403004002 | C37: 初中 | D37: 语文 | E37: 040101710 | F37: 84.2 | G37: 2 | H37: 80.2 | I37: =ROUND(F37/1.2*0.6+H37*0.4,2) -> 74.18
A38: 田家庵区淮河中学 | B38: 340403004002 | C38: 初中 | D38: 语文 | E38: 040101713 | F38: 84.3 | G38: 弃权 | I38: 弃权
A39: 田家庵区淮河中学 | B39: 340403004003 | C39: 初中 | D39: 历史 | E39: 040200124 | F39: 89 | G39: 6 | H39: 81.8 | I39: =ROUND(F39/1.2*0.6+H39*0.4,2) -> 77.22
A40: 田家庵区淮河中学 | B40: 340403004003 | C40: 初中 | D40: 历史 | E40: 040200123 | F40: 86.5 | G40: 9 | H40: 76 | I40: 73.65
A41: 田家庵区淮河中学 | B41: 340403004003 | C41: 初中 | D41: 历史 | E41: 040200122 | F41: 82.3 | G41: 3 | H41: 81.2 | I41: 73.63
A42: 田家庵区淮河中学 | B42: 340403004004 | C42: 初中 | D42: 道德与法治 | E42: 040102909 | F42: 90.2 | G42: 7 | H42: 82.6 | I42: 78.14
A43: 田家庵区淮河中学 | B43: 340403004004 | C43: 初中 | D43: 道德与法治 | E43: 040102911 | F43: 89.6 | G43: 4 | H43: 81.8 | I43: 77.52
A44: 田家庵区淮河中学 | B44: 340403004004 | C44: 初中 | D44: 道德与法治 | E44: 040102908 | F44: 82.9 | G44: 1 | H44: 78.2 | I44: 72.73
A45: 田家庵区淮河中学 | B45: 340403004005 | C45: 初中 | D45: 物理 | E45: 040202017 | F45: 77.9 | G45: 3 | H45: 77.6 | I45: 69.99
A46: 田家庵区淮河中学 | B46: 340403004005 | C46: 初中 | D46: 物理 | E46: 040202016 | F46: 66.8 | G46: 12 | H46: 78 | I46: 64.6
A47: 田家庵区淮河中学 | B47: 340403004005 | C47: 初中 | D47: 物理 | E47: 040202018 | F47: 64.7 | G47: 弃权 | I47: 弃权
A48: 田家庵区曹岭湖中学 | B48: 340403005001 | C48: 小学 | D48: 语文 | E48: 040401305 | F48: 92.3 | G48: 5 | H48: 85.8 | I48: =ROUND(F48/1.2*0.6+H48*0.4,2) -> 80.47
A49: 田家庵区曹岭湖中学 | B49: 340403005001 | C49: 小学 | D49: 语文 | E49: 040401230 | F49: 91.8 | G49: 13 | H49: 80.2 | I49: 77.98
A50: 田家庵区曹岭湖中学 | B50: 340403005001 | C50: 小学 | D50: 语文 | E50: 040401301 | F50: 83.4 | G50: 3 | H50: 75.2 | I50: 71.78
A51: 田家庵区曹岭湖中学 | B51: 340403005002 | C51: 初中 | D51: 数学 | E51: 040200918 | F51: 83.8 | G51: 5 | H51: 80 | I51: 73.9
A52: 田家庵区曹岭湖中学 | B52: 340403005002 | C52: 初中 | D52: 数学 | E52: 040200907 | F52: 83.6 | G52: 9 | H52: 78.4 | I52: 73.16
A53: 田家庵区曹岭湖中学 | B53: 340403005002 | C53: 初中 | D53: 数学 | E53: 040200917 | F53: 78.5 | G53: 13 | H53: 78.2 | I53: 70.53
A54: 田家庵区曹岭湖中学 | B54: 340403005002 | C54: 初中 | D54: 数学 | E54: 040200914 | F54: 71.8 | G54: 7 | H54: 80.6 | I54: 68.14
A55: 田家庵区曹岭湖中学 | B55: 340403005002 | C55: 初中 | D55: 数学 | E55: 040200915 | F55: 72.7 | G55: 弃权 | I55: 弃权
A56: 田家庵区曹岭湖中学 | B56: 340403005003 | C56: 初中 | D56: 历史 | E56: 040200127 | F56: 93.4 | G56: 10 | H56: 87.8 | I56: =ROUND(F56/1.2*0.6+H56*0.4,2) -> 81.82
A57: 田家庵区曹岭湖中学 | B57: 340403005003 | C57: 初中 | D57: 历史 | E57: 040200125 | F57: 88.4 | G57: 8 | H57: 79.8 | I57: 76.12
A58: 田家庵区曹岭湖中学 | B58: 340403005003 | C58: 初中 | D58: 历史 | E58: 040200129 | F58: 88.6 | G58: 7 | H58: 76.6 | I58: 74.94
A59: 田家庵区曹岭湖中学 | B59: 340403005004 | C59: 初中 | D59: 物理 | E59: 040202021 | F59: 74.9 | G59: 2 | H59: 73.8 | I59: 66.97
A60: 田家庵区龙湖中学 | B60: 340403006001 | C60: 小学 | D60: 语文 | E60: 040401315 | F60: 96.9 | G60: 7 | H60: 86.8 | I60: 83.17
A61: 田家庵区龙湖中学 | B61: 340403006001 | C61: 小学 | D61: 语文 | E61: 040401308 | F61: 92.1 | G61: 8 | H61: 87 | I61: 80.85
A62: 田家庵区龙湖中学 | B62: 340403006001 | C62: 小学 | D62: 语文 | E62: 040401316 | F62: 91.6 | G62: 17 | H62: 83 | I62: 79
A63: 田家庵区龙湖中学 | B63: 340403006001 | C63: 小学 | D63: 语文 | E63: 040401325 | F63: 88.9 | G63: 19 | H63: 80.8 | I63: 76.77
A64: 田家庵区龙湖中学 | B64: 340403006001 | C64: 小学 | D64: 语文 | E64: 040401313 | F64: 79.9 | G64: 10 | H64: 80.2 | I64: 72.03
A65: 田家庵区龙湖中学 | B65: 340403006001 | C65: 小学 | D65: 语文 | E65: 040401322 | F65: 81 | G65: 6 | H65: 71.4 | I65: 69.06
A66: 田家庵区龙湖中学 | B66: 340403006002 | C66: 小学 | D66: 数学 | E66: 040301016 | F66: 68.3 | G66: 8 | H66: 82.8 | I66: 67.27
A67: 田家庵区龙湖中学 | B67: 340403006002 | C67: 小学 | D67: 数学 | E67: 040301012 | F67: 65.3 | G67: 7 | H67: 83.6 | I67: 66.09
A68: 田家庵区龙湖中学 | B68: 340403006002 | C68: 小学 | D68: 数学 | E68: 040301017 | F68: 62.7 | G68: 9 | H68: 77.2 | I68: 62.23
A69: 田家庵区龙湖中学 | B69: 340403006003 | C69: 初中 | D69: 数学 | E69: 040200923 | F69: 84.1 | G69: 8 | H69: 82.4 | I69: 75.01
A70: 田家庵区龙湖中学 | B70: 340403006003 | C70: 初中 | D70: 数学 | E70: 040200927 | F70: 76.7 | G70: 14 | H70: 82.3 | I70: 71.27
A71: 田家庵区龙湖中学 | B71: 340403006003 | C71: 初中 | D71: 数学 | E71: 040200920 | F71: 73.3 | G71: 6 | H71: 70 | I71: 64.65
A72: 田家庵区民生中学 | B72: 340403007001 | C72: 小学 | D72: 语文 | E72: 040401411 | F72: 90.6 | G72: 9 | H72: 83.6 | I72: 78.74
A73: 田家庵区民生中学 | B73: 340403007001 | C73: 小学 | D73: 语文 | E73: 040401404 | F73: 84.7 | G73: 12 | H73: 68.6 | I73: 69.79
A74: 田家庵区民生中学 | B74: 340403007001 | C74: 小学 | D74: 语文 | E74: 040401407 | F74: 85 | G74: 弃权 | I74: 弃权
A75: 田家庵区民生中学 | B75: 340403007002 | C75: 初中 | D75: 语文 | E75: 040101728 | F75: 83.6 | G75: 15 | H75: 77.6 | I75: =ROUND(F75/1.2*0.6+H75*0.4,2) -> 72.84
A76: 田家庵区民生中学 | B76: 340403007002 | C76: 初中 | D76: 语文 | E76: 040101727 | F76: 80.8 | G76: 11 | H76: 76.3 | I76: =ROUND(F76/1.2*0.6+H76*0.4,2) -> 70.92
A77: 田家庵区民生中学 | B77: 340403007002 | C77: 初中 | D77: 语文 | E77: 040101804 | F77: 82.4 | G77: 弃权 | I77: 弃权
A78: 田家庵区民生中学 | B78: 340403007003 | C78: 初中 | D78: 数学 | E78: 040201001 | F78: 72.1 | G78: 4 | H78: 77.2 | I78: =ROUND(F78/1.2*0.6+H78*0.4,2) -> 66.93
A79: 田家庵区民生中学 | B79: 340403007004 | C79: 初中 | D79: 英语 | E79: 040203129 | F79: 93.9 | G79: 16 | H79: 85.4 | I79: 81.11
A80: 田家庵区民生中学 | B80: 340403007004 | C80: 初中 | D80: 英语 | E80: 040203202 | F80: 92.5 | G80: 14 | H80: 83.6 | I80: 79.69
A81: 田家庵区民生中学 | B81: 340403007004 | C81: 初中 | D81: 英语 | E81: 040203122 | F81: 90.7 | G81: 11 | H81: 77.4 | I81: 76.31
A82: 田家庵区曹庵中学 | B82: 340403008001 | C82: 初中 | D82: 语文 | E82: 040101813 | F82: 84.7 | G82: 14 | H82: 80.3 | I82: 74.47
A83: 田家庵区曹庵中学 | B83: 340403008001 | C83: 初中 | D83: 语文 | E83: 040101817 | F83: 81 | G83: 16 | H83: 78.9 | I83: 72.06
A84: 田家庵区曹庵中学 | B84: 340403008001 | C84: 初中 | D84: 语文 | E84: 040101818 | F84: 82.5 | G84: 9 | H84: 73.2 | I84: 70.53
A85: 田家庵区史院中学 | B85: 340403009001 | C85: 初中 | D85: 物理 | E85: 040202022 | F85: 75.8 | G85: 8 | H85: 78.4 | I85: 69.26
A86: 田家庵区史院中学 | B86: 340403009001 | C86: 初中 | D86: 物理 | E86: 040202023 | F86: 74.5 | G86: 6 | H86: 77.4 | I86: 68.21
A87: 田家庵区史院中学 | B87: 340403009001 | C87: 初中 | D87: 物理 | E87: 040202025 | F87: 64.7 | G87: 弃权 | I87: 弃权
